Cogmind - Beta 15 *** ADVENTURER MODE // 2025.09.15 @ 13:30:40 Player: Nicky Result: Destroyed by G-47 Trooper with Particle Gun Performance ------------- Evolutions (2) 1000 Regions Visited (4) 800 Robots Destroyed (18) 90 Value Destroyed (494) 494 Prototype IDs (0) 0 Alien Tech Used (0) 0 Bonus (118) 118 TOTAL SCORE: 2502 Bonus ------- Follower Combat Kills 118 Cogmind --------- Core Integrity 0/550 Matter 300/300 Energy 100/100 System Corruption 0% Temperature Cool (36) Movement Core (50) Location -8/Materials Parts ------- > --- POWER (1) -------- (None) > --- PROPULSION (4) --- (None) > --- UTILITY (4) ------ (None) > --- WEAPON (2) ------- (None) > --- INVENTORY (5) ---- Light Nuclear Core Structural Scanner Hardened Light Armor Plating Particle Cannon Heavy Assault Rifle Peak State ------------ > --- POWER ------------ Light Nuclear Core > --- PROPULSION ------- Compact Wheel Compact Wheel Compact Wheel > --- UTILITY ---------- Small Storage Unit Hardened Light Armor Plating Hardened Light Armor Plating > --- WEAPON ----------- Assault Rifle Chainsword > --- INVENTORY -------- Light Nuclear Core Light Nuclear Core Structural Scanner Targeting Computer Particle Cannon Heavy Assault Rifle [Rating: 17] Favorites ----------- Power Light Nuclear Core Engine Ion Engine Power Core Light Nuclear Core Propulsion Compact Wheel Wheel Compact Wheel Utility Small Storage Unit Device Structural Scanner Storage Small Storage Unit Protection Hardened Light Armor Plating Weapon Assault Rifle Energy Gun EM Pulse Gun Energy Cannon Particle Cannon Ballistic Gun Assault Rifle Slashing Weapon Chainsword Build | -11 -10 -9 -9 -8 ------- Run | Yrd Mat Mat Min Mat Slots Evolved 4 | . . 2 . 2 Power . | . . . . . Propulsion 2 | . . 1 . 1 Utility 2 | . . 1 . 1 Weapon . | . . . . . Parts Attached 18 | 5 5 2 1 5 Power 3 | 1 1 1 . . Engine 2 | 1 1 . . . Core 1 | . . 1 . . Reactor . | . . . . . Propulsion 4 | 2 . . 1 1 Treads . | . . . . . Leg . | . . . . . Wheel 4 | 2 . . 1 1 Hover . | . . . . . Flight . | . . . . . Utility 5 | 1 1 1 . 2 Device 2 | . 1 1 . . Storage 1 | 1 . . . . Processor . | . . . . . Hackware . | . . . . . Protection 2 | . . . . 2 Artifact . | . . . . . Weapon 6 | 1 3 . . 2 Energy Gun 1 | . 1 . . . Energy Cannon 1 | . . . . 1 Ballistic Gun 3 | 1 2 . . . Ballistic Cannon . | . . . . . Launcher . | . . . . . Special Weapon . | . . . . . Impact Weapon . | . . . . . Slashing Weapon 1 | . . . . 1 Piercing Weapon . | . . . . . Special Melee Weapon . | . . . . . Unidentified Prototypes . | . . . . . Parts Lost 8 | . . . 1 7 Power . | . . . . . Propulsion 4 | . . . 1 3 Utility 1 | . . . . 1 Weapon 3 | . . . . 3 Highest Loss Streak 6 | . . . 1 6 To Critical Strikes . | . . . . . Average Backups 7 | 4 7 7 8 7 Power 1 | . 1 1 2 2 Propulsion 1 | 2 3 1 . . Utility 2 | . 1 2 3 2 Weapon 2 | . 1 2 2 2 Tool/Special . | . . . . . Unused Backups 12 | . 4 3 1 4 Power 3 | . . 1 . 2 Propulsion 4 | . 2 2 . . Utility 3 | . 1 . 1 1 Weapon 2 | . 1 . . 1 Tool/Special . | . . . . . Average Slot Usage (%) 81 | . 93 88 90 55 Engine 5 | . 14 2 . . Core 5 | . . 9 11 6 Wheel 22 | . 28 22 24 15 Device 12 | . 8 22 22 7 Storage 11 | . 14 11 11 9 Protection 1 | . . . . 6 Ballistic Gun 20 | . 26 22 22 8 Peak Build Rating 17 | 5 7 11 12 17 Average Rating 8 | 3 6 10 11 10 On Entrance 6 | . 5 7 11 11 Naked Turns 4 | . . . . 4 Heaviest Build 25 | 11 15 16 16 25 Greatest Support 48 | 32 32 32 48 48 Greatest Overweight (x) 2 | . . . . 2 Average Overweight (x) . | . . . . . Largest Inventory Capacity 8 | 8 8 8 8 8 Average Capacity 7 | 6 8 8 8 7 Most Carried 8 | 7 8 8 8 8 Average Carried 7 | 4 7 7 7 7 Final Capacity 8 | 8 8 8 8 5 Final Carried 8 | 7 8 8 8 5 Class Distribution -------------------- 100% | Mutant Dominant Class ---------------- Mutant | -10/Materials Mutant | -9/Materials Mutant | -9/Mines Mutant | -8/Materials Resources | -11 -10 -9 -9 -8 ----------- Run | Yrd Mat Mat Min Mat Matter Collected 588 | 215 241 . 37 95 Remotely . | . . . . . Salvage Created 653 | . 427 . 17 209 Parts 38 | . 27 . . 11 Haulers Intercepted . | . . . . . Recyclers Shooed . | . . . . . Parts Field Recycled . | . . . . . Retrieved Matter . | . . . . . Parts Self-Destructed . | . . . . . Prevented . | . . . . . Kills | -11 -10 -9 -9 -8 ------- Run | Yrd Mat Mat Min Mat Combat Hostiles Destroyed 18 | . 11 . 1 6 Melee 5 | . . . . 5 Guns 12 | . 11 . 1 . Cannons 1 | . . . . 1 Classes Destroyed 4 | . 3 . 1 . Builder 1 | . 1 . . . Swarmer 6 | . 3 . . 3 Grunt 11 | . 8 . . 3 Assembled 1 | . . . 1 . Best Kill Streak 6 | . 6 . 1 3 Combat Bots Only 6 | . 6 . 1 3 Max Kills in Single Turn 1 | . 1 . 1 1 Gunslinging . | . . . . . Exploded . | . . . . . Melee 1 | . . . . 1 Uniques/NPCs Destroyed . | . . . . . Combat | -11 -10 -9 -9 -8 -------- Run | Yrd Mat Mat Min Mat Hostile Shots Fired 259 | . 51 . 13 195 Missed 86 | . 19 . 3 64 Hits 173 | . 32 . 10 131 Projectile 173 | . 32 . 10 131 AOE 1 | . . . . 1 Critical Strikes 3 | . . . . 3 Damage Taken 1606 | . 259 . 101 1246 Core 637 | . 49 . 28 560 Absorbed by Shields . | . . . . . Ignored by Resistances 488 | . 82 . 31 375 Core Remaining (%) 91 | 100 80 . 93 . Volleys Fired 39 | . 26 . 5 8 Largest 2 | . 2 . 2 2 Hottest 68 | . 40 . 40 68 Shots Fired 77 | . 52 . 10 15 Gun 76 | . 52 . 10 14 Cannon 1 | . . . . 1 Launcher . | . . . . . Special . | . . . . . Kinetic 76 | . 52 . 10 14 Thermal 1 | . . . . 1 Explosive . | . . . . . Electromagnetic . | . . . . . Robot Hit Streak 29 | . 29 . 3 13 Robot Miss Streak 2 | . 1 . 2 1 Penetration Max . | . . . . . Secondary Targets . | . . . . . Shots Hit Robots 73 | . 42 . 6 25 Core Hits 30 | . 20 . 2 8 Critical Kills 1 | . 1 . . . Critical Parts Destroyed . | . . . . . Critical Strikes 2 | . 1 . . 1 Destroy 1 | . 1 . . . Sever 1 | . . . . 1 Melee Attacks 14 | . . . . 14 Impact . | . . . . . Slashing 14 | . . . . 14 Piercing . | . . . . . Sneak Attacks . | . . . . . Combat Hostiles . | . . . . . Follow-up Attacks . | . . . . . Damage Inflicted 1193 | . 539 . 73 581 Guns 776 | . 539 . 73 164 Cannons 21 | . . . . 21 Explosions . | . . . . . Melee 396 | . . . . 396 Ramming . | . . . . . Kinetic 776 | . 539 . 73 164 Thermal 21 | . . . . 21 Explosive . | . . . . . Electromagnetic . | . . . . . Impact . | . . . . . Slashing 396 | . . . . 396 Piercing . | . . . . . Highest Corruption . | . . . . . Average Corruption . | . . . . . Corruption Purged . | . . . . . Corruption Blocked . | . . . . . Overload Shots . | . . . . . Overflow Damage 18 | . . . . 18 Projectiles . | . . . . . Explosions . | . . . . . Melee 18 | . . . . 18 Knockbacks . | . . . . . Impact . | . . . . . Kinetic . | . . . . . Secondary . | . . . . . Self-Inflicted Damage . | . . . . . Shots . | . . . . . Rammed . | . . . . . Targets Rammed . | . . . . . Kicked . | . . . . . Crushed . | . . . . . Highest Temperature 67 | . 12 . . 67 Average Temperature 27 | . 5 . . 31 Received Heat Transfer 750 | . 168 . 6 576 Siege Activations . | . . . . . Martial Activations . | . . . . . Shielding Activations . | . . . . . Robots Disrupted . | . . . . . Combat Hostiles . | . . . . . Robots Corrupted . | . . . . . Combat Hostiles . | . . . . . Parts Fried . | . . . . . Impact Corruptions . | . . . . . Robots Melted . | . . . . . Combat Hostiles . | . . . . . Parts Melted . | . . . . . Heat Transferred 37 | . . . . 37 Parts Sabotaged . | . . . . . Parts Stolen . | . . . . . Parts Stripped . | . . . . . Power Chain Reactions . | . . . . . Alert | -11 -10 -9 -9 -8 ------- Run | Yrd Mat Mat Min Mat Maximum Alert Level 1 | . . . . 1 Low Security (%) 95 | 100 100 100 100 82 Level 1 4 | . . . . 17 Level 2 . | . . . . . Level 3 . | . . . . . Level 4 . | . . . . . Level 5 . | . . . . . High Security . | . . . . . Max Security . | . . . . . Peak Influence 263 | . 196 63 53 263 Initial 63 | . . 63 7 13 Average 55 | . 58 42 4 103 Influence Increases 797 | . 276 . 53 468 Destroy 0b10 Robot/C 420 | . 220 . 40 160 Destroy 0b10 Robot/NC 5 | . 5 . . . Destroy Leader 90 | . 40 . 10 40 Allied During Kill 5 | . . . 3 2 Successful Hack 21 | . 10 . . 11 Destroy Structure 1 | . 1 . . . Lose Combat Pursuer 255 | . . . . 255 Influence Decreases 534 | . 101 152 33 248 Entered New Map 158 | . . 112 16 30 Time Decay 254 | . 101 40 17 96 Lost Part 70 | . . . . 70 Lost Ally 52 | . . . . 52 Squads Dispatched 8 | . 3 . 1 4 Investigation 6 | . 3 . 1 2 Extermination . | . . . . . Reinforcement 2 | . . . . 2 Assault . | . . . . . Garrison . | . . . . . Intercept . | . . . . . Searches Triggered . | . . . . . Construction Impeded . | . . . . . Haulers Reinforced . | . . . . . Active Scanning Responses . | . . . . . Cargo Convoy Interrupts . | . . . . . Stealth | -11 -10 -9 -9 -8 --------- Run | Yrd Mat Mat Min Mat Distress Signals 3 | . 1 . 1 1 Communications Jammed . | . . . . . Distress Signals . | . . . . . Times Spotted 54 | . 17 . 6 31 Peak Tracking Total 20 | . 7 . 20 12 Tactical Retreats 8 | . . . 1 7 Traps | -11 -10 -9 -9 -8 ------- Run | Yrd Mat Mat Min Mat Traps Triggered 4 | . 3 . . 1 Indirectly . | . . . . . Trap Hack Attempts . | . . . . . Triggered . | . . . . . Disarmed . | . . . . . Reprogrammed . | . . . . . Reused . | . . . . . Traps Extracted . | . . . . . Installed . | . . . . . Triggered . | . . . . . Machines | -11 -10 -9 -9 -8 ---------- Run | Yrd Mat Mat Min Mat Machines Disabled . | . . . . . Max in Single Turn . | . . . . . Machines Repaired . | . . . . . Machines Dismantled . | . . . . . Machines Sabotaged . | . . . . . Overloaded Fab Kills . | . . . . . Hacking | -11 -10 -9 -9 -8 --------- Run | Yrd Mat Mat Min Mat Machines Accessed 9 | . 4 . 1 4 Terminals 7 | . 3 . . 4 Fabricators . | . . . . . Repair Stations 1 | . 1 . . . Recycling Units . | . . . . . Scanalyzers . | . . . . . Garrison Access . | . . . . . Total Hacks 29 | . 14 . 1 14 Successful 15 | . 8 . 1 6 Failed 14 | . 6 . . 8 Catastrophic . | . . . . . Database Lockouts . | . . . . . Manual 17 | . 8 . . 9 Terminals 26 | . 12 . . 14 Fabricators . | . . . . . Repair Stations 2 | . 2 . . . Recycling Units . | . . . . . Scanalyzers . | . . . . . Garrison Access . | . . . . . Terminal Hacks 10 | . 5 . 1 4 Record 1 | . 1 . . . Open Door 1 | . . . 1 . Level Access Points 1 | . 1 . . . Branch Access Points 1 | . . . . 1 Alert Level 1 | . . . . 1 Dispatch Records 1 | . . . . 1 Patrol Status 1 | . 1 . . . Hauler Manifests 1 | . 1 . . . Zone Layout 2 | . 1 . . 1 Fabricator Hacks . | . . . . . Repair Station Hacks . | . . . . . Recycling Unit Hacks . | . . . . . Scanalyzer . | . . . . . Garrison Access Hacks . | . . . . . Unauthorized Hacks 5 | . 3 . . 2 Terminals 4 | . 2 . . 2 Botnet 4 | . 2 . . 2 Fabricators . | . . . . . Repair Stations 1 | . 1 . . . Mechanics 1 | . 1 . . . Recycling Units . | . . . . . Scanalyzers . | . . . . . Garrison Access . | . . . . . Data Cores Recovered . | . . . . . Used . | . . . . . Hacking Detections 8 | . 4 . . 4 Full Trace Events 1 | . . . . 1 Feedback Events . | . . . . . Feedback Blocked . | . . . . . Robot Schematics Acquired . | . . . . . Robots Built . | . . . . . Authchips . | . . . . . Time . | . . . . . Total Robot Build Rating . | . . . . . Part Schematics Acquired . | . . . . . Parts Built . | . . . . . Authchips . | . . . . . Time . | . . . . . Total Part Build Rating . | . . . . . Parts Repaired . | . . . . . Time . | . . . . . Parts Recycled . | . . . . . Recycled Matter . | . . . . . Retrieved Matter . | . . . . . Retrieved Components . | . . . . . Parts Scanalyzed . | . . . . . Part Schematics Acquired . | . . . . . Parts Damaged . | . . . . . Bothacking | -11 -10 -9 -9 -8 ------------ Run | Yrd Mat Mat Min Mat Used RIF Installer . | . . . . . Robots Hacked . | . . . . . Non-combat . | . . . . . Combat . | . . . . . Robot Hacks Applied . | . . . . . Relay Couplers Released . | . . . . . Fabnet Peak Effective % . | . . . . . Robots Rewired . | . . . . . Allies Hacked . | . . . . . Hacks Repelled . | . . . . . Allies | -11 -10 -9 -9 -8 -------- Run | Yrd Mat Mat Min Mat Total Allies 3 | . . . 3 . Largest Group 3 | . . . 3 3 Highest-Rated Group 40 | . . . 40 40 Highest-Rated Ally 16 | . . . 16 16 Total Orders . | . . . . . Ally Attacks 28 | . . . 8 20 Total Damage 299 | . . . 82 217 Kills 4 | . . . 2 2 Allies Corrupted . | . . . . . Allies Melted . | . . . . . Intel | -11 -10 -9 -9 -8 ------- Run | Yrd Mat Mat Min Mat Active Infowar (turns) 630 | . 226 99 188 117 Sensors 404 | . . 99 188 117 Structural 602 | . 226 99 188 89 Robot Analysis Total . | . . . . . Derelict Logs Recovered 1 | . . . 1 . Drone Launches . | . . . . . Drone Recoveries . | . . . . . Exploration | -11 -10 -9 -9 -8 ------------- Run | Yrd Mat Mat Min Mat Turns Passed 1008 | 60 383 99 188 278 Spaces Moved 770 | 48 274 89 161 198 Core 75 | 3 . . . 72 Treads . | . . . . . Legs . | . . . . . Wheels 695 | 45 274 89 161 126 Hover . | . . . . . Flight . | . . . . . Fastest Speed 50 | 50 100 100 100 50 Average Speed 100 | 96 100 100 100 102 Slowest Speed 150 | 100 100 100 100 150 Overloaded Moves . | . . . . . Propulsion Burnouts . | . . . . . Robots Hopped . | . . . . . Potential Cave-ins . | . . . . . Cave-ins Triggered . | . . . . . Exploration Rate (%) 30 | 4 54 12 53 31 Regions Visited 4 Branch Regions 1 Pre-discovered Areas . | . . . . . Known Exits Taken 1 | . 1 . . . Unknown Exits Taken 3 | 1 . 1 1 . Scrap Searched 1 | . . . 1 . Spaces Dug . | . . . . . Terrain Destroyed . | . . . . . Melee . | . . . . . Projectile . | . . . . . AOE . | . . . . . Terrain Rammed . | . . . . . Walls Destroyed . | . . . . . Machines Disabled . | . . . . . Actions | -11 -10 -9 -9 -8 --------- Run | Yrd Mat Mat Min Mat Total 911 | 59 334 102 177 239 Wait 33 | . 18 . 9 6 Move 766 | 47 273 88 160 198 Hop . | . . . . . Pick Up 20 | 7 6 6 1 . Fast Attach 8 | 5 1 . 1 1 Attach 6 | . 1 1 . 4 Detach 4 | . . . . 4 Swap 5 | . 3 1 . 1 Drop 16 | . 6 6 1 3 Fire 39 | . 26 . 5 8 Melee 14 | . . . . 14 Ram . | . . . . . Kick . | . . . . . Crush . | . . . . . Escape Stasis . | . . . . . Rewire . | . . . . . Trap . | . . . . . Miscellaneous . | . . . . . Route ------- -11/Scrapyard -10/Materials (discovered 3 exits: *Mat x3) -9/Materials -9/Mines -8/Materials History --------- Turn | Location | Event 14 | -11/Scrapyard | Discovered new exit (range 15) 61 | -11/Scrapyard | Entered Materials 315 | -10/Materials | Build established: Mutant 423 | -10/Materials | Discovered new exit (range 16) 432 | -10/Materials | Identified exit to Materials 444 | -10/Materials | Entered another Materials area 444 | -9/Materials | Evolved 2 slots: Propulsion x1, Utility x1 486 | -9/Materials | Discovered new exit (range 16) 543 | -9/Materials | Entered Mines 551 | -9/Mines | Found DCF Scrap (11 items) 562 | -9/Mines | Assembled infested the area 625 | -9/Mines | Assisted by bots powering up and referring to "LRC-V3" 678 | -9/Mines | Discovered new exit (range 10) 711 | -9/Mines | Met a Derelict shopkeep closing up shop 731 | -9/Mines | Entered Materials 731 | -8/Materials | Accompanied by 3 allies 731 | -8/Materials | Evolved 2 slots: Propulsion x1, Utility x1 864 | -8/Materials | Lost 4 allies 944 | -8/Materials | Lost 6 parts (3n1u2w) 960 | -8/Materials | Core integrity fell below 50% 1003 | -8/Materials | Core integrity fell below 20% 1009 | -8/Materials | Destroyed by G-47 Trooper with Particle Gun Last Messages --------------- 00910_ S-10 Pest destroyed. 00913_ Com. Wheel destroyed. 00914_ Destroyed Flight Unit. 00914_ S-10 Pest destroyed. 00917_ Dropped Hrd. Light Armor Plating. 00918_ Dropped Lgt. Nuclear Core. 00924_ M-13 Machinist repairs G-47 Trooper. 00930_ Critical hit (Burn: +37). 00949_ Connecting with Terminal... >>Trojan(Botnet) Trojan loaded successfully. Testing... Terminal linked with 1 system. Awaiting botnet instructions. 00980_ Chainsword destroyed. 00988_ Connecting with Terminal... 00990_ S-10 Pest destroyed. 00991_ Acquired 15 matter. 01005_ Dropped Sml. Storage Unit. 01009_ Critical hit (Burn: +37). Map ----- +----------------------------------------------------+ | | | | | | | | | | | | | | | | | | | #######?????????????????????????? | | # ?????????????????????????? | | # ?????????????????????????? | | # " #????????????????????????? | | # """ #????????????????????????? | | # "" ####?????????????????????? | | # """ # #?????????????????????? | | # "" # #?????????????????????? | | # """ + ########??????????????? | | # """ #! # #??????????????? | | # """ !#!*# #??????????????? | | # " # m# " #??????????????? | | # # # T #??????????????? | | # # Y/%" #??????????????? | | ########gs# #??????????????? | | ???????#g ########??????????????? | | ???????#@g#?????????????????????? | | ???????# g#?????????????????????? | | ???????# #?????????????????????? | | ???????# #?????????????????????? | | ??????## Y##???######???????????? | | ??????# g##### #???????????? | | ??????+ ###?????????? | | ??????# +?????????? | | ??????# ##### ###?????????? | | ??????######???## ##???????????? | | ?????????######?# #????????????? | | ????????##!!!!### #????????????? | | ????????#! !## #????????????? | | ?####???# ## ##???????????? | | # #### # ##### #??? | | # + #??? | | # # T !#??? | | # # ######## ##### ! | | # ?# #??????##+###??????###### | | # ?# #???????????????????????? | | # ??# #???????????????????????? | | # ??# #???????????????????????? | | # ???# #???????????????????????? | | ##???# #???????????????????????? | | ?????# #???????????????????????? | +----------------------------------------------------+ Best States ------------- Heat Dissipation 31 Energy Generation 14 Energy Capacity 250 Matter Stores 300 Matter Capacity 300 Sight Range 16 Robot Scan Range 14 Terrain Scan Density 10 Armor Coverage 300 Resistance: KI 20 Resistance: TH 20 Resistance: EX 20 Resistance: EM 20 Resistance: I 20 Resistance: S 20 Resistance: P 20 Evasion (%) 40 Offensive Hacking 10 Item Schematics ----------------- None Robot Schematics ------------------ None Fabricated ------------ Nothing Repaired ---------- Nothing Alien Tech Used ----------------- None Achievements -------------- None Challenges ------------ None Game ------ Seed WarpDeepKit Manual? 0 Play Time 00:30:47 Cumulative 20.0 hours Start 2025.09.15 @ 13:00:30 End 2025.09.15 @ 13:30:40 Sessions 1 Manual Loads 0 Difficulty Adventurer Special Mode None Game No. 24 Rogue 23 Adventurer 1 Explorer 0 Win Type - Total 2 Types 1/0/0/1/0/0/0/0/0/0 Lore% 9 Gallery% 25 Achievement% 27 Wizard Run 0 Options --------- Layout 0 ASCII 0 Keyboard 0 Movement Arrows Keybinds 0 Fullscreen 1 Font 18/SmallcapsGlow Map View 76x50 Zoom Use 21% Tactical HUD 1 Map Filters NONE Filters NONE Steam 1 RUN: 5541756e-7a0f-49ff-8a01-8a56412b079f